[Event "German Bundesliga 2024-25"]
[Site "Germany"]
[Date "2024.09.29"]
[Round "2.16"]
[White "Bologan, Victor"]
[Black "Zaja, Ivan"]
[Result "1-0"]
[Annotator "TA"]
[ECO "C18"]
[WhiteElo "2598"]
[BlackElo "2421"]
[PlyCount "91"]
[EventDate "2024.09.27"]
[EventType "team-tourn"]
[EventCountry "GER"]
[SourceTitle "playchess.com"]
[Source "ChessBase"]
[SourceQuality "1"]
[WhiteTeam "Duesseldorfer SK"]
[BlackTeam "SK Kirchweyhe"]
[TimeControl "40/5400+30:1800+30"]

{[%evp 33,91,86,75,85,64,100,180,-20,-10,-8,-7,0,81,9,7,9,10,9,182,222,227,112,101,108,99,69,76,73,73,78,94,83,81,81,76,61,60,58,49,39,71,71,70,36,40,19,634,418,418,210,418,410,411,411,411,404,402,363,360,360]} 1. e4 {[%emt 0:00:02]} e6 {[%emt 0:00:17]} 2. d4 {[%emt 0:00:05]} d5 {[%emt 0:00:05]} 3. Nc3 {[%emt 0:00:03]} Bb4 {[%emt 0:00:32]} 4. e5 {[%emt 0:00:11]} c5 {[%emt 0:00:06]} 5. a3 {[%emt 0:00:23]} Ba5 {[%emt 0:00:07]} 6. b4 {[%emt 0:00:31]} cxd4 {[%emt 0:00:08]} 7. Qg4 {[%emt 0:00:30]} Ne7 {[%emt 0:00:21]} 8. bxa5 {[%emt 0:00:15]} dxc3 {[%emt 0:00:13]} 9. Qxg7 {[%emt 0:00:06]} Rg8 {[%emt 0:00:15]} 10. Qxh7 {[%emt 0:00:06]} Nbc6 {[%emt 0:00:12]} 11. Nf3 $1 {[%emt 0:00:12] 11.Nf3 is better than 11.f4.} Qc7 {[%emt 0:00:20]} 12. Bf4 {[%emt 0:00:44]} Bd7 {[%emt 0:00:07]} 13. a6 {[%emt 0:01:55] C18: French: 3 Nc3 Bb4: Main line: 7 h4 and 7 Qg4.} O-O-O {[%emt 0:00:14]} 14. Qd3 {[%emt 0:00:11]} Rg4 {[%emt 0:07:33]} 15. axb7+ {[%emt 0:00:26]} Kb8 {[%emt 0:00:07]} 16. g3 {[%emt 0:01:30]} Ng6 {[%emt 0:02:22]} 17. Qxc3 {[%emt 0:00:27]} (17. Be3 $2 d4 18. Nxd4 Nxd4 (18... Ngxe5 $2 19. Qxc3 Nxd4 20. Qxc7+ Kxc7 21. O-O-O $19) 19. Bxd4 Rxd4 $19 (19... Qxb7 $2 20. f3 $18) (19... Bc6 $2 20. Bxa7+ Kxb7 21. Qa6+ Ka8 22. Bb6+ Kb8 $18)) 17... Nxf4 {[%emt 0:02:14]} (17... Kxb7 $2 18. h3 Rxf4 19. gxf4 $18) 18. h3 $1 {[%emt 0:03:10]} Nxh3 {[%emt 0:00:36]} (18... d4 $2 19. Qc5 Nxh3 20. Bxh3 (20. Rxh3 Nxe5 21. Qxc7+ Kxc7 $16) 20... Re4+ 21. Kf1 $18) 19. Rxh3 {[%emt 0:00:29]} Re4+ {[%emt 0:00:08]} (19... d4 $16 {is a better defense.} 20. Qc5 Nxe5 21. Qxc7+ (21. Qxe5 Re4+ 22. Qxe4 Qc3+ 23. Kd1 Qxa1+ 24. Ke2 Bb5+ 25. Kd2 Qxf1 $11) 21... Kxc7 22. Nxe5 Re4+ 23. Be2 Rxe5) 20. Kd2 $2 {[%emt 0:02:23]} ({White has to play} 20. Be2 $1 $18) 20... Qb6 $1 $11 {[%emt 0:03:39]} (20... Kxb7 $2 21. Rb1+ Ka8 22. Rh7 $18) 21. Rh2 {[%emt 0:05:20]} d4 $1 {[%emt 0:09:45]} (21... Kxb7 22. Kc1 Kc7 23. Rb1 $18) 22. Qd3 $146 {[%emt 0:00:55]} ({Predecessor:} 22. Qb3 Qa5+ 23. Kd1 Nxe5 24. Nd2 d3 25. Nxe4 dxc2+ 26. Kc1 Qe1+ 27. Kxc2 Qxe4+ 28. Kb2 {0-1 Gonzalez Lopez,N (2200)-Akhmetov,A (2438) FISU World University rapid 2020 (4.7)}) 22... Qa5+ {[%emt 0:00:30]} (22... Rxe5 $1 $11 {remains equal.} 23. Nxe5 Nxe5) 23. Kd1 {[%emt 0:03:27]} (23. Kc1 $16 Qd5 24. Bg2 (24. Qb5 Qxb5 25. Bxb5 Nxe5 $11)) 23... Rxe5 $1 $11 {[%emt 0:07:48]} 24. Nxe5 {[%emt 0:06:30]} (24. Nxd4 $2 Re1#) 24... Nxe5 {[%emt 0:01:12]} 25. Rh5 {[%emt 0:03:59]} (25. Qxd4 $2 Be8 $19 (25... Kxb7 $2 26. Kc1 $18) (25... Kxb7 $2 26. Kc1 $18)) 25... f5 $2 {[%emt 0:04:41]} (25... Qc7 $1 $11 {and Black has nothing to worry.} 26. Qb3 (26. Qxd4 $2 Bb5 $19) 26... Bc6) 26. Qd2 $1 $18 {[%emt 0:01:11]} (26. Qxd4 $2 Be8 $19 (26... Kxb7 $2 27. Rh7 $18) (26... Kxb7 $2 27. Rh7 $18)) 26... Qd5 {[%emt 0:14:40]} 27. f4 {[%emt 0:28:59]} (27. Bd3 $18) 27... d3 $16 {[%emt 0:12:26]} 28. Kc1 $1 {[%emt 0:06:17]} (28. cxd3 Qf3+ 29. Qe2 (29. Be2 $2 Ba4+ 30. Kc1 Nxd3+ 31. Bxd3 Qxh5 $19) 29... Ba4+ 30. Kd2 Rxd3+ 31. Qxd3 Nxd3 32. Rh8+ Kxb7 33. Bxd3 Qxg3 34. Rb1+ Kc6 35. Rc8+ Kd7 $19) (28. Bxd3 $6 Nxd3 (28... Be8 29. fxe5 Bxh5+ 30. Kc1 $16) 29. cxd3 (29. Qxd3 $2 Be8 $19) 29... Ba4+ 30. Ke1 Qd4 $11 (30... Qf3 $2 31. Rh3 $18)) 28... Qf3 {[%emt 0:14:07]} 29. fxe5 {[%emt 0:03:11]} (29. Bxd3 Nxd3+ (29... Qxh5 30. fxe5 Qh1+ 31. Kb2 $14) 30. Qxd3 Qxh5 31. Qd6+ Kxb7 32. Rb1+ Ka8 $17) 29... Qxh5 {[%emt 0:06:22]} 30. Qxd3 {[%emt 0:00:35]} Qg5+ {[%emt 0:00:34]} 31. Kb2 {[%emt 0:01:43]} Bc6 {[%emt 0:00:26] [#]} 32. Qc3 $1 {[%emt 0:02:19]} Bxb7 {[%emt 0:01:28] [#]} 33. Bc4 $1 {[%emt 0:00:54]} Rc8 {[%emt 0:05:13]} 34. Rd1 {[%emt 0:05:45]} f4 {[%emt 0:00:45]} 35. Rd7 {[%emt 0:06:58]} fxg3 {[%emt 0:03:20]} 36. Qd4 {[%emt 0:01:57]} Rxc4 {[%emt 0:04:25]} (36... g2 37. Ba6 Rc7 (37... g1=R 38. Rxb7+ Ka8 39. Qxa7#) 38. Qd6 $18) 37. Qxc4 {[%emt 0:00:50]} Qxe5+ {[%emt 0:00:01]} 38. c3 {[%emt 0:04:26]} a6 {[%emt 0:00:19]} 39. a4 {[%emt 0:01:50]} (39. Qb4 $5 Qb5 $8 40. Qxb5 axb5 41. Kc2 $11) 39... Ka7 $2 {[%emt 0:01:36][%mdl 8192]} (39... a5 $11) 40. Qb4 {[%emt 0:03:23]} Qb8 {[%emt 0:00:40]} 41. Qd4+ {[%emt 0:30:35]} Ka8 {[%emt 0:30:01]} 42. Rd8 {[%emt 0:00:17]} Bc8+ {[%emt 0:00:11]} 43. Ka3 {[%emt 0:03:41]} Qc7 {[%emt 0:00:00]} 44. Rg8 {[%emt 0:00:00]} e5 {[%emt 0:00:00]} 45. Qe4+ {[%emt 0:00:00]} Ka7 {[%emt 0:00:00]} 46. Rxg3 {[%emt 0:00:00]} 1-0

[Event "German Bundesliga 2024-25"]
[Site "Germany"]
[Date "2024.10.06"]
[Round "2.16"]
[White "Colbow, Collin"]
[Black "Kusa, Jakub"]
[Result "1/2-1/2"]
[Annotator "TA"]
[ECO "C65"]
[WhiteElo "2438"]
[BlackElo "2402"]
[PlyCount "108"]
[EventDate "2024.09.27"]
[EventType "team-tourn"]
[EventCountry "GER"]
[SourceTitle "playchess.com"]
[Source "ChessBase"]
[SourceQuality "1"]
[WhiteTeam "Werder Bremen"]
[BlackTeam "Bad Mergentheim"]
[TimeControl "40/5400+30:1800+30"]

{[%evp 37,108,12,33,50,49,17,42,51,50,56,58,22,25,30,39,32,37,36,38,44,41,13,61,58,65,58,84,20,32,0,0,0,0,0,0,0,0,0,0,0,0,0,0,0,0,0,0,0,0,0,0,0,0,0,0,0,0,0,0,0,0,0,0,0,0,0,0,0,0,0,0,0,0]} 1. e4 {[%emt 0:00:51]} e5 {[%emt 0:00:14]} 2. Nf3 {[%emt 0:00:06]} Nc6 {[%emt 0:00:10]} 3. Bb5 {[%emt 0:00:05]} Nf6 {[%emt 0:00:41]} 4. d3 {[%emt 0:00:33]} Bc5 {[%emt 0:00:55]} 5. c3 {[%emt 0:00:22]} d5 {[%emt 0:00:28]} 6. exd5 {[%emt 0:00:07] C65: Ruy Lopez: Berlin Defence (3...Nf6), unusual lines and 4 0-0 Bc5.} Qxd5 {[%emt 0:00:19]} 7. Bc4 {[%emt 0:00:36]} Qd6 {[%emt 0:00:49]} 8. b4 {[%emt 0:03:42]} Bb6 {[%emt 0:00:09]} 9. Nbd2 {[%emt 0:00:46]} Bf5 {[%emt 0:00:27]} 10. Ng5 {[%emt 0:00:47]} O-O {[%emt 0:00:29]} 11. Nde4 {[%emt 0:00:13]} Nxe4 {[%emt 0:00:46]} 12. dxe4 {[%emt 0:00:07]} Qxd1+ {[%emt 0:00:33]} 13. Kxd1 {[%emt 0:00:01]} Bg4+ {[%emt 0:00:20]} 14. f3 {[%emt 0:00:19]} Bd7 {[%emt 0:01:01]} 15. a4 {[%emt 0:01:17]} h6 {[%emt 0:01:06]} 16. a5 {[%emt 0:00:56]} hxg5 {[%emt 0:00:10]} 17. Bxg5 {[%emt 0:00:12]} Bxa5 {[%emt 0:00:46]} 18. bxa5 {[%emt 0:00:08]} b6 {[%emt 0:00:13]} 19. Bd5 {[%emt 0:00:56]} Rae8 $146 {[%emt 0:06:20]} ({Predecessor:} 19... Rac8 20. axb6 cxb6 21. h4 Rfe8 22. Bxc6 Rxc6 23. Rxa7 Be6 24. Ra3 b5 25. Ke2 Rec8 {½-½ Grandelius,N (2659)-Vidit,S (2721) Prague Masters 2nd 2020 (4)}) 20. axb6 {[%emt 0:01:35]} axb6 {[%emt 0:00:48]} 21. h4 {[%emt 0:13:45]} Na5 {[%emt 0:14:11]} 22. h5 {[%emt 0:02:13]} c6 {[%emt 0:03:19]} 23. Ba2 {[%emt 0:01:42]} Be6 {[%emt 0:03:11]} 24. h6 {[%emt 0:06:45]} Bxa2 {[%emt 0:03:37]} 25. Rxa2 {[%emt 0:00:24]} Re6 {[%emt 0:00:32]} 26. g4 {[%emt 0:19:56]} gxh6 {[%emt 0:07:44]} 27. Bxh6 {[%emt 0:00:39]} Rd8+ {[%emt 0:00:28]} 28. Ke2 {[%emt 0:03:05]} c5 {[%emt 0:08:17]} 29. Rh5 {[%emt 0:05:50]} Nc6 {[%emt 0:13:44]} (29... Red6 $11) 30. Bg5 {[%emt 0:15:54]} f6 {[%emt 0:05:21]} 31. Be3 {[%emt 0:00:38]} Kg7 {[%emt 0:04:55]} 32. Rh1 {[%emt 0:09:40]} (32. Ra1 $16) 32... Red6 {[%emt 0:07:16]} 33. Rb1 {[%emt 0:02:48]} Na5 {[%emt 0:02:50]} 34. Rh1 {[%emt 0:07:22]} (34. Bxc5 bxc5 35. Rxa5 Rd2+ 36. Ke1 Rc2 37. Rb7+ (37. Rxc5 {gets mated.} Rh8 38. Rb7+ Kg6 39. Kd1 Rg2) 37... Kh6 $11) 34... Nc4 {[%emt 0:01:35]} 35. Ra7+ {[%emt 0:00:50]} R6d7 {[%emt 0:02:09]} 36. Rha1 {[%emt 0:01:08]} Kg6 {[%emt 0:02:16]} 37. Rxd7 {[%emt 0:00:34]} Rxd7 {[%emt 0:00:08]} 38. Ra6 {[%emt 0:01:51]} Nxe3 {[%emt 0:10:03]} 39. Kxe3 {[%emt 0:00:02]} c4 {[%emt 0:00:12]} 40. Rxb6 {[%emt 0:00:40]} Rd3+ {[%emt 0:00:06]} 41. Kf2 {[%emt 0:07:28]} Kg5 {[%emt 0:04:19]} 42. Kg3 {[%emt 0:02:10]} Rxc3 {[%emt 0:00:13]} 43. Rc6 {[%emt 0:00:09]} Rc1 {[%emt 0:01:36]} 44. Rc8 {[%emt 0:02:07]} c3 {[%emt 0:01:49]} 45. Rg8+ {[%emt 0:00:25]} Kh6 {[%emt 0:00:08]} 46. Rh8+ {[%emt 0:01:18]} Kg7 {[%emt 0:00:19]} 47. Rc8 {[%emt 0:00:07]} c2 {[%emt 0:00:42]} 48. Kg2 {[%emt 0:00:25]} Kh6 {[%emt 0:02:07]} 49. Rc3 {[%emt 0:01:39]} Kg6 {[%emt 0:01:07]} 50. Rc7 {[%emt 0:00:10]} Kg5 {[%emt 0:00:53]} 51. Rc6 {[%emt 0:00:07]} Kg6 {[%emt 0:01:21]} 52. Rc7 {[%emt 0:00:04]} Kh6 {[%emt 0:01:19]} 53. Rc3 $1 {[%emt 0:00:55]} Kg5 {[%emt 0:00:06]} 54. Rc6 {[%emt 0:00:06]} Kg6 {[%emt 0:01:21]} 1/2-1/2

[Event "German Bundesliga 2024-25"]
[Site "Germany"]
[Date "2024.10.06"]
[Round "2.16"]
[White "Kocharin, Timur"]
[Black "Wisnet, Dominic"]
[Result "1/2-1/2"]
[Annotator "RC"]
[ECO "A39"]
[WhiteElo "2234"]
[BlackElo "2284"]
[PlyCount "57"]
[EventDate "2024.09.27"]
[EventType "team-tourn"]
[EventCountry "GER"]
[SourceTitle "playchess.com"]
[Source "ChessBase"]
[SourceQuality "1"]
[WhiteTeam "Baden-Baden"]
[BlackTeam "Deggendorf"]
[TimeControl "40/5400+30:1800+30"]

1. c4 {[%emt 0:00:54]} Nf6 {[%emt 0:00:08]} 2. Nc3 {[%emt 0:00:21]} c5 {[%emt 0:00:23]} 3. g3 {[%emt 0:00:19]} g6 {[%emt 0:00:09]} 4. Bg2 {[%emt 0:00:12]} Bg7 {[%emt 0:00:04]} 5. Nf3 {[%emt 0:00:27]} Nc6 {[%emt 0:00:26]} 6. d4 {[%emt 0:01:14]} cxd4 {[%emt 0:00:09]} 7. Nxd4 {[%emt 0:00:06]} O-O {[%emt 0:00:39]} 8. O-O {[%emt 0:00:26]} Nxd4 {[%emt 0:03:31]} 9. Qxd4 {[%emt 0:00:08]} d6 {[%emt 0:00:09]} 10. Qd3 {[%emt 0:02:25]} Rb8 {[%emt 0:05:21]} 11. Rd1 {[%emt 0:06:41]} Qa5 {[%emt 0:01:16]} 12. h3 {[%emt 0:07:32]} Be6 {[%emt 0:01:19]} 13. Bd2 {[%emt 0:04:38]} Rfc8 {[%emt 0:05:41]} 14. Nd5 {[%emt 0:11:10]} Qd8 {[%emt 0:00:15]} 15. Rac1 {[%emt 0:02:27]} Nxd5 {[%emt 0:04:18]} 16. cxd5 {[%emt 0:00:05]} Bd7 {[%emt 0:00:24]} 17. b3 {[%emt 0:08:52]} a6 {[%emt 0:08:59]} 18. a4 {[%emt 0:06:01]} Rxc1 {[%emt 0:02:04]} 19. Rxc1 {[%emt 0:00:20]} Rc8 {[%emt 0:00:10]} 20. Rc2 {[%emt 0:03:49]} Rxc2 {[%emt 0:04:50]} 21. Qxc2 {[%emt 0:00:14]} Qc8 {[%emt 0:00:32]} 22. Qxc8+ {[%emt 0:05:18]} Bxc8 {[%emt 0:00:04]} 23. Kf1 {[%emt 0:00:18]} h5 {[%emt 0:05:29]} 24. e4 {[%emt 0:00:59]} Bd4 {[%emt 0:00:38]} 25. Ke2 {[%emt 0:00:32]} Kf8 {[%emt 0:01:50]} 26. h4 {[%emt 0:08:04]} Bd7 {[%emt 0:01:17]} 27. Be3 {[%emt 0:00:28]} Bc3 {[%emt 0:00:51]} 28. Kd3 {[%emt 0:01:44]} Be1 {[%emt 0:00:38]} 29. Bb6 {[%emt 0:00:33]} 1/2-1/2